{"text_format":"1","workbook":"xlsx","n_sheets":2,"sheets":["ΠΑΡΟΥΣΙΟΛΟΓΙΟ","ΠΡΑΞΕΙΣ"],"not_rendered":{"charts":0,"images":15,"macros":1,"external_links":0,"defined_names":2,"comments":0,"pivot_tables":0},"unopened":[],"bounds":{"document_bytes":16777216,"sheet_cells":100000,"rows_first":2000,"rows_last":500,"rows_between":2000,"halvings":0,"cell_chars":16384,"cell_head_chars":4096},"cells_cut":0,"cells_raw":0,"read":"whole","date_system":"1900"}

{"sheet":"ΠΑΡΟΥΣΙΟΛΟΓΙΟ","index":0,"n_rows":44,"n_cols":9,"rows_kept":44,"cut":false,"hidden":false,"merged":[[48,1,52,8],[3,2,3,5],[43,1,46,5],[43,6,47,8],[8,1,8,8],[5,1,5,8],[6,5,6,7],[6,1,6,4],[7,6,7,7],[7,1,7,4],[11,6,42,6],[9,6,9,7],[9,1,9,5]]}
[]
[null,"ΕΤΟΣ",2018]
[null,"ΜΗΝΑΣ",5]
[null,"ΠΡΑΞΗ","ΕΚΟ (ΕΕΠ/ΕΒΠ)"]
[]
[null,"Έργο : «Ένταξη ευάλωτων κοινωνικών ομάδων (ΕΚΟ) στα σχολεία-Τάξεις Υποδοχής, σχολικό έτος 2017-2018» με κωδικό ΟΠΣ 5009805, του Ε.Π. «Ανάπτυξη Ανθρώπινου Δυναμικού, Εκπαίδευση και Διά Βίου Μάθηση 2014-2020» "]
[null,"Δ/νση Εκπ/σης:",null,null,null,"Σχολείο:",null,null,"Κωδικός Σχολείου:"]
[null,"Ταχ. Δ/νση Σχολείου:",null,null,null,"Τηλ. Σχολείου:","FAX:",null,"e-mail:"]
[null,"Ονοματεπώνυμο Διευθυντή του Σχολείου:"]
[null,"Ονοματεπώνυμο αναπληρωτή/τριας ΕΕΠ/ΕΒΠ:",null,null,null,null,"Ειδικότητα:",null,"ΑΦΜ:"]
[]
[null,"ΗΜΕΡΑ ","ΗΜΕΡΟΜΗΝΙΑ","Ώρες Υποστήριξης σύμφωνα με το Ωρολόγιο Πρόγραμμα","ΠΑΡΟΥΣΙΕΣ\nΏρες Υποστήριξης\nή\nαιτιολογία μη λειτουργίας σχολείου","ΥΠΟΓΡΑΦΗ αναπληρωτή/τριας ΕΕΠ/ΕΒΠ\n\n(ΜΟΝΟ τις ημέρες που είναι παρών/ούσα)",null,"ΑΠΟΥΣΙΕΣ\n\n(Ώρες Υποστήριξης)","ΛΟΓΟΣ ΑΠΟΥΣΙΑΣ\n(είδος άδειας, απεργία/στάση εργασίας, αδικαιολόγητη απουσία)"]
[null,{"$f":"C13","v":"2018-05-01"},{"$f":"DATE($C$2,$C$3,1)","v":"2018-05-01"}]
[null,"2018-05-02",{"$f":"IF(C13<>\"\",IF(MONTH(C13+1)=MONTH(C13),C13+1,\"\"),\"\")","v":"2018-05-02"}]
[null,"2018-05-03","2018-05-03"]
[null,"2018-05-04","2018-05-04"]
[null,"2018-05-05","2018-05-05"]
[null,"2018-05-06","2018-05-06"]
[null,"2018-05-07","2018-05-07"]
[null,"2018-05-08","2018-05-08"]
[null,"2018-05-09","2018-05-09"]
[null,"2018-05-10","2018-05-10"]
[null,"2018-05-11","2018-05-11"]
[null,"2018-05-12","2018-05-12"]
[null,"2018-05-13","2018-05-13"]
[null,"2018-05-14","2018-05-14"]
[null,"2018-05-15","2018-05-15"]
[null,"2018-05-16","2018-05-16"]
[null,"2018-05-17","2018-05-17"]
[null,"2018-05-18","2018-05-18"]
[null,"2018-05-19","2018-05-19"]
[null,"2018-05-20","2018-05-20"]
[null,"2018-05-21","2018-05-21"]
[null,"2018-05-22","2018-05-22"]
[null,"2018-05-23","2018-05-23"]
[null,"2018-05-24","2018-05-24"]
[null,"2018-05-25","2018-05-25"]
[null,"2018-05-26","2018-05-26"]
[null,"2018-05-27","2018-05-27"]
[null,"2018-05-28","2018-05-28"]
[null,"2018-05-29","2018-05-29"]
[null,"2018-05-30","2018-05-30"]
[null,"2018-05-31","2018-05-31"]
[null,"Οδηγίες:\n• Ο-Η αναπληρωτής/τρια ΕΕΠ/ΕΒΠ υπογράφει ΜΟΝΟ τις ημέρες που είναι παρών/ούσα.\n• Το παρουσιολόγιο ελέγχεται από τον αναπληρωτή ΕΕΠ/ΕΒΠ και τον Διευθυντή του Σχολείου.\n• Αντίγραφο του Παρουσιολογίου φυλάσσεται στο Σχολείο.",null,null,null,null,"Βεβαιώνεται υπεύθυνα η ακρίβεια των ανωτέρω στοιχείων και η συμφωνία του ωρολογίου προγ/τος με τις ώρες υποστήριξης\nΟ/Η ΒΕΒΑΙΩΝ/ΟΥΣΑ\n\nΟ/Η ΔΙΕΥΘΥΝΤΗΣ/ΝΤΡΙΑ ΤΟΥ ΣΧΟΛΕΙΟΥ"]

{"sheet":"ΠΡΑΞΕΙΣ","index":1,"n_rows":28,"n_cols":21,"rows_kept":28,"cut":false,"hidden":false,"merged":[]}
["ΣΥΝΤΟΜΟΣ ΤΙΤΛΟΣ","ΠΡΑΞΗ","ΔΙΕΥΘΥΝΣΗ","ΣΧΟΛΕΙΟ","ΚΩΔΙΚΟΣ ΣΧΟΛΕΙΟΥ","ΤΑΧΥΔΡΟΜΙΚΗ ΔΙΕΥΘΥΝΣΗ ΣΧΟΛΕΙΟΥ","ΤΗΛΕΦΩΝΟ","FAX","e-mail","ΟΝ/ΜΟ ΔΙΕΥΘΥΝΤΗ","ΟΝ/ΜΟ ΕΚΠΑΙΔΕΥΤΙΚΟΥ","ΕΙΔΙΚΟΤΗΤΑ","ΑΦΜ","ΩΡΟΛΟΓΙΟ","ΠΑΡΟΥΣΙΕΣ","ΥΠΟΓΡΑΦΗ","ΑΠΟΥΣΙΕΣ","ΛΟΓΟΣ ΑΠΟΥΣΙΑΣ","ΟΔΗΓΙΕΣ","ΒΕΒΑΙΩΣΗ","ΛΟΓΟΤΥΠΟ"]
["ΟΛΟΗΜΕΡΟ ΔΗΜΟΤΙΚΟ","Έργο : «Ενιαίος Τύπος Ολοήμερου Δημοτικού Σχολείου, 2017-18», με κωδικό ΟΠΣ 5009814, του Ε.Π. «Ανάπτυξη Ανθρώπινου Δυναμικού, Εκπαίδευση και Διά Βίου Μάθηση 2014-2020» ","Δ/νση Α/θμιας Εκπ/σης:","Σχολείο:","Κωδικός Σχολείου:","Ταχ. Δ/νση Σχολείου:","Τηλ. Σχολείου:","FAX:","e-mail:","Ονοματεπώνυμο Διευθυντή του Σχολείου:","Ονοματεπώνυμο αναπληρωτή/τριας εκπαιδευτικού:","Ειδικότητα:","ΑΦΜ:","Διδακτικές ώρες σύμφωνα με το Ωρολόγιο Πρόγραμμα","ΠΑΡΟΥΣΙΕΣ\nΔιδακτικές ώρες\nή \nαιτιολογία μη λειτουργίας σχολείου","ΥΠΟΓΡΑΦΗ ΕΚΠ/ΚΟΥ\n\n(ΜΟΝΟ τις ημέρες που είναι παρών/ούσα)","ΑΠΟΥΣΙΕΣ\n\n(Διδ. Ώρες)","ΛΟΓΟΣ ΑΠΟΥΣΙΑΣ\n(είδος άδειας, απεργία/στάση εργασίας, αδικαιολόγητη απουσία)","Οδηγίες:\n• Ο-Η αναπληρωτής/τρια εκπ/κός υπογράφει ΜΟΝΟ τις ημέρες που είναι παρών/ούσα.\n• Το παρουσιολόγιο ελέγχεται από τον εκπαιδευτικό και τον Διευθυντή του Σχολείου.\n• Αντίγραφο του Παρουσιολογίου φυλάσσεται στο Σχολείο.","Βεβαιώνεται υπεύθυνα η ακρίβεια των ανωτέρω στοιχείων και η συμφωνία του ωρολογίου προγ/τος με τις διδακτικές ώρες \nΟ/Η ΒΕΒΑΙΩΝ/ΟΥΣΑ\n\nΟ/Η ΔΙΕΥΘΥΝΤΗΣ/ΝΤΡΙΑ ΤΟΥ ΣΧΟΛΕΙΟΥ"]
["ΕΝΙΣΧΥΣΗ ΠΡΟΣΧΟΛΙΚΗΣ","Έργο : «Ενίσχυση Προσχολικής Εκπαίδευσης 2017-2018», με κωδικό ΟΠΣ 5009801,  του Ε.Π. «Ανάπτυξη Ανθρώπινου Δυναμικού, Εκπαίδευση και Διά Βίου Μάθηση 2014-2020» ","Δ/νση Α/θμιας Εκπ/σης:","Σχολείο:","Κωδικός Σχολείου:","Ταχ. Δ/νση Σχολείου:","Τηλ. Σχολείου:","FAX:","e-mail:","Ονοματεπώνυμο Προϊσταμένου/ης Νηπιαγωγείου:","Ονοματεπώνυμο αναπληρωτή/τριας εκπαιδευτικού:","Ειδικότητα:","ΑΦΜ:","Διδακτικές ώρες σύμφωνα με το Ωρολόγιο Πρόγραμμα","ΠΑΡΟΥΣΙΕΣ\nΔιδακτικές ώρες\nή \nαιτιολογία μη λειτουργίας σχολείου","ΥΠΟΓΡΑΦΗ ΕΚΠ/ΚΟΥ\n\n(ΜΟΝΟ τις ημέρες που είναι παρών/ούσα)","ΑΠΟΥΣΙΕΣ\n\n(Διδ. Ώρες)","ΛΟΓΟΣ ΑΠΟΥΣΙΑΣ\n(είδος άδειας, απεργία/στάση εργασίας, αδικαιολόγητη απουσία)","Οδηγίες:\n• Ο-Η αναπληρωτής/τρια εκπ/κός υπογράφει ΜΟΝΟ τις ημέρες που είναι παρών/ούσα.\n• Το παρουσιολόγιο ελέγχεται από τον εκπαιδευτικό και τον Προϊστάμενο του Νηπιαγωγείου.\n• Αντίγραφο του Παρουσιολογίου φυλάσσεται στο Σχολείο.","Βεβαιώνεται υπεύθυνα η ακρίβεια των ανωτέρω στοιχείων και η συμφωνία του ωρολογίου προγ/τος με τις διδακτικές ώρες \nΟ/Η ΒΕΒΑΙΩΝ/ΟΥΣΑ\n\nΟ/Η ΠΡΟΊΣΤΑΜΕΝΟΣ/Η ΤΟΥ ΝΗΠΙΑΓΩΓΕΙΟΥ"]
["ΕΞΑΤΟΜΙΚΕΥΜΕΝΗ (ΕΚΠΑΙΔΕΥΤΙΚΟΙ)","Έργο : «ΠΡΟΓΡΑΜΜΑ ΜΕΤΡΩΝ ΕΞΑΤΟΜΙΚΕΥΜΕΝΗΣ ΥΠΟΣΤΗΡΙΞΗΣ ΜΑΘΗΤΩΝ ΜΕ ΑΝΑΠΗΡΙΕΣ Ή/ΚΑΙ ΕΙΔΙΚΕΣ ΕΚΠΑΙΔΕΥΤΙΚΕΣ ΑΝΑΓΚΕΣ, ΣΧΟΛΙΚΟ ΕΤΟΣ 2017/18», με κωδικό ΟΠΣ 5009808, του Ε.Π. «Ανάπτυξη Ανθρώπινου Δυναμικού, Εκπαίδευση και Διά Βίου Μάθηση 2014-2020»  ","Δ/νση Εκπ/σης:","Σχολείο:","Κωδικός Σχολείου:","Ταχ. Δ/νση Σχολείου:","Τηλ. Σχολείου:","FAX:","e-mail:","Ονοματεπώνυμο Διευθυντή του Σχολείου:","Ονοματεπώνυμο αναπληρωτή/τριας εκπαιδευτικού:","Ειδικότητα:","ΑΦΜ:","Διδακτικές ώρες σύμφωνα με το Ωρολόγιο Πρόγραμμα","ΠΑΡΟΥΣΙΕΣ\nΔιδακτικές ώρες\nή \nαιτιολογία μη λειτουργίας σχολείου","ΥΠΟΓΡΑΦΗ ΕΚΠ/ΚΟΥ\n\n(ΜΟΝΟ τις ημέρες που είναι παρών/ούσα)","ΑΠΟΥΣΙΕΣ\n\n(Διδ. Ώρες)","ΛΟΓΟΣ ΑΠΟΥΣΙΑΣ\n(είδος άδειας, απεργία/στάση εργασίας, αδικαιολόγητη απουσία)","Οδηγίες:\n• Ο-Η αναπληρωτής/τρια εκπ/κός υπογράφει ΜΟΝΟ τις ημέρες που είναι παρών/ούσα.\n• Το παρουσιολόγιο ελέγχεται από τον εκπαιδευτικό και τον Διευθυντή του Σχολείου.\n• Αντίγραφο του Παρουσιολογίου φυλάσσεται στο Σχολείο.","Βεβαιώνεται υπεύθυνα η ακρίβεια των ανωτέρω στοιχείων και η συμφωνία του ωρολογίου προγ/τος με τις διδακτικές ώρες \nΟ/Η ΒΕΒΑΙΩΝ/ΟΥΣΑ\n\nΟ/Η ΔΙΕΥΘΥΝΤΗΣ/ΝΤΡΙΑ ΤΟΥ ΣΧΟΛΕΙΟΥ"]
["ΕΞΑΤΟΜΙΚΕΥΜΕΝΗ (ΕΕΠ/ΕΒΠ)","Έργο : «ΠΡΟΓΡΑΜΜΑ ΜΕΤΡΩΝ ΕΞΑΤΟΜΙΚΕΥΜΕΝΗΣ ΥΠΟΣΤΗΡΙΞΗΣ ΜΑΘΗΤΩΝ ΜΕ ΑΝΑΠΗΡΙΕΣ Ή/ΚΑΙ ΕΙΔΙΚΕΣ ΕΚΠΑΙΔΕΥΤΙΚΕΣ ΑΝΑΓΚΕΣ, ΣΧΟΛΙΚΟ ΕΤΟΣ 2017/18», με κωδικό ΟΠΣ 5009808, του Ε.Π. «Ανάπτυξη Ανθρώπινου Δυναμικού, Εκπαίδευση και Διά Βίου Μάθηση 2014-2020»  ","Δ/νση Εκπ/σης:","Σχολείο:","Κωδικός Σχολείου:","Ταχ. Δ/νση Σχολείου:","Τηλ. Σχολείου:","FAX:","e-mail:","Ονοματεπώνυμο Διευθυντή του Σχολείου:","Ονοματεπώνυμο αναπληρωτή/τριας ΕΕΠ/ΕΒΠ:","Ειδικότητα:","ΑΦΜ:","Ώρες Υποστήριξης σύμφωνα με το Ωρολόγιο Πρόγραμμα","ΠΑΡΟΥΣΙΕΣ\nΏρες Υποστήριξης\nή\nαιτιολογία μη λειτουργίας σχολείου","ΥΠΟΓΡΑΦΗ αναπληρωτή/τριας ΕΕΠ/ΕΒΠ\n\n(ΜΟΝΟ τις ημέρες που είναι παρών/ούσα)","ΑΠΟΥΣΙΕΣ\n\n(Ώρες Υποστήριξης)","ΛΟΓΟΣ ΑΠΟΥΣΙΑΣ\n(είδος άδειας, απεργία/στάση εργασίας, αδικαιολόγητη απουσία)","Οδηγίες:\n• Ο-Η αναπληρωτής/τρια ΕΕΠ/ΕΒΠ υπογράφει ΜΟΝΟ τις ημέρες που είναι παρών/ούσα.\n• Το παρουσιολόγιο ελέγχεται από τον αναπληρωτή ΕΕΠ/ΕΒΠ και τον Διευθυντή του Σχολείου.\n• Αντίγραφο του Παρουσιολογίου φυλάσσεται στο Σχολείο.","Βεβαιώνεται υπεύθυνα η ακρίβεια των ανωτέρω στοιχείων και η συμφωνία του ωρολογίου προγ/τος με τις ώρες υποστήριξης\nΟ/Η ΒΕΒΑΙΩΝ/ΟΥΣΑ\n\nΟ/Η ΔΙΕΥΘΥΝΤΗΣ/ΝΤΡΙΑ ΤΟΥ ΣΧΟΛΕΙΟΥ"]
["ΕΞΕΙΔΙΚΕΥΜΕΝΗ (ΕΚΠΑΙΔΕΥΤΙΚΟΙ)","Έργο : «Πρόγραμμα εξειδικευμένης εκπαιδευτικής υποστήριξης για την ένταξη μαθητών με αναπηρία ή και ειδικές εκπαιδευτικές ανάγκες, σχολικό έτος 2017/18», με κωδικό ΟΠΣ 5009815, του Ε.Π. «Ανάπτυξη Ανθρώπινου Δυναμικού, Εκπαίδευση και Διά Βίου Μάθηση 2014-2020» ","Δ/νση Εκπ/σης:","Σχολείο:","Κωδικός Σχολείου:","Ταχ. Δ/νση Σχολείου:","Τηλ. Σχολείου:","FAX:","e-mail:","Ονοματεπώνυμο Διευθυντή του Σχολείου:","Ονοματεπώνυμο αναπληρωτή/τριας εκπαιδευτικού:","Ειδικότητα:","ΑΦΜ:","Διδακτικές ώρες σύμφωνα με το Ωρολόγιο Πρόγραμμα","ΠΑΡΟΥΣΙΕΣ\nΔιδακτικές ώρες\nή \nαιτιολογία μη λειτουργίας σχολείου","ΥΠΟΓΡΑΦΗ ΕΚΠ/ΚΟΥ\n\n(ΜΟΝΟ τις ημέρες που είναι παρών/ούσα)","ΑΠΟΥΣΙΕΣ\n\n(Διδ. Ώρες)","ΛΟΓΟΣ ΑΠΟΥΣΙΑΣ\n(είδος άδειας, απεργία/στάση εργασίας, αδικαιολόγητη απουσία)","Οδηγίες:\n• Ο-Η αναπληρωτής/τρια εκπ/κός υπογράφει ΜΟΝΟ τις ημέρες που είναι παρών/ούσα.\n• Το παρουσιολόγιο ελέγχεται από τον εκπαιδευτικό και τον Διευθυντή του Σχολείου.\n• Αντίγραφο του Παρουσιολογίου φυλάσσεται στο Σχολείο.","Βεβαιώνεται υπεύθυνα η ακρίβεια των ανωτέρω στοιχείων και η συμφωνία του ωρολογίου προγ/τος με τις διδακτικές ώρες \nΟ/Η ΒΕΒΑΙΩΝ/ΟΥΣΑ\n\nΟ/Η ΔΙΕΥΘΥΝΤΗΣ/ΝΤΡΙΑ ΤΟΥ ΣΧΟΛΕΙΟΥ"]
["ΕΞΕΙΔΙΚΕΥΜΕΝΗ (ΕΕΠ/ΕΒΠ)","Έργο : «Πρόγραμμα εξειδικευμένης εκπαιδευτικής υποστήριξης για την ένταξη μαθητών με αναπηρία ή και ειδικές εκπαιδευτικές ανάγκες, σχολικό έτος 2017/18», με κωδικό ΟΠΣ 5009815, του Ε.Π. «Ανάπτυξη Ανθρώπινου Δυναμικού, Εκπαίδευση και Διά Βίου Μάθηση 2014-2020» ","Δ/νση Εκπ/σης:","Σχολείο:","Κωδικός Σχολείου:","Ταχ. Δ/νση Σχολείου:","Τηλ. Σχολείου:","FAX:","e-mail:","Ονοματεπώνυμο Διευθυντή του Σχολείου:","Ονοματεπώνυμο αναπληρωτή/τριας ΕΕΠ/ΕΒΠ:","Ειδικότητα:","ΑΦΜ:","Ώρες Υποστήριξης σύμφωνα με το Ωρολόγιο Πρόγραμμα","ΠΑΡΟΥΣΙΕΣ\nΏρες Υποστήριξης\nή\nαιτιολογία μη λειτουργίας σχολείου","ΥΠΟΓΡΑΦΗ αναπληρωτή/τριας ΕΕΠ/ΕΒΠ\n\n(ΜΟΝΟ τις ημέρες που είναι παρών/ούσα)","ΑΠΟΥΣΙΕΣ\n\n(Ώρες Υποστήριξης)","ΛΟΓΟΣ ΑΠΟΥΣΙΑΣ\n(είδος άδειας, απεργία/στάση εργασίας, αδικαιολόγητη απουσία)","Οδηγίες:\n• Ο-Η αναπληρωτής/τρια ΕΕΠ/ΕΒΠ υπογράφει ΜΟΝΟ τις ημέρες που είναι παρών/ούσα.\n• Το παρουσιολόγιο ελέγχεται από τον αναπληρωτή ΕΕΠ/ΕΒΠ και τον Διευθυντή του Σχολείου.\n• Αντίγραφο του Παρουσιολογίου φυλάσσεται στο Σχολείο.","Βεβαιώνεται υπεύθυνα η ακρίβεια των ανωτέρω στοιχείων και η συμφωνία του ωρολογίου προγ/τος με τις ώρες υποστήριξης\nΟ/Η ΒΕΒΑΙΩΝ/ΟΥΣΑ\n\nΟ/Η ΔΙΕΥΘΥΝΤΗΣ/ΝΤΡΙΑ ΤΟΥ ΣΧΟΛΕΙΟΥ"]
["ΑΝΑΠΤΥΞΗ ΥΠΟΣΤΗΡΙΚΤΙΚΩΝ ΔΟΜΩΝ (ΚΕΔΔΥ)","Έργο : «Ανάπτυξη υποστηρικτικών δομών για την ένταξη και συμπερίληψη στην εκπαίδευση των μαθητών με αναπηρία ή και ειδικές εκπαιδευτικές ανάγκες, σχολικό έτος 2017-18», με κωδικό ΟΠΣ 5009803, του Ε.Π. «Ανάπτυξη Ανθρώπινου Δυναμικού, Εκπαίδευση και Διά Βίου Μάθηση 2014-2020»  ","Περιφερειακή Δ/νση Εκπ/σης:","ΚΕΔΔΥ:","Κωδικός ΚΕΔΔΥ:","Ταχ. Δ/νση ΚΕΔΔΥ:","Τηλ. ΚΕΔΔΥ:","FAX:","e-mail:","Ονοματεπώνυμο Προϊσταμένου/ης ΚΕΔΔΥ:","Ονοματεπώνυμο αναπληρωτή/τριας εκπαιδευτικού/ΕΕΠ:","Ειδικότητα:","ΑΦΜ:","Ώρες Υποστήριξης σύμφωνα με το προβλεπόμενο ωράριο","ΠΑΡΟΥΣΙΕΣ\nΏρες Υποστήριξης\nή\nαιτιολογία μη λειτουργίας ΚΕΔΔΥ","ΥΠΟΓΡΑΦΗ αναπληρωτή/τριας Εκπαιδευτικού/ΕΕΠ\n\n(ΜΟΝΟ τις ημέρες που είναι παρών/ούσα)","ΑΠΟΥΣΙΕΣ\n\n(Ώρες Υποστήριξης)","ΛΟΓΟΣ ΑΠΟΥΣΙΑΣ\n(είδος άδειας, απεργία/στάση εργασίας, αδικαιολόγητη απουσία)","Οδηγίες:\n• Ο-Η αναπληρωτής/τρια εκπαιδευτικός/ΕΕΠ υπογράφει ΜΟΝΟ τις ημέρες που είναι παρών/ούσα.\n• Το παρουσιολόγιο ελέγχεται από τον αναπληρωτή εκπαιδευτικό/ΕΕΠ και τον Προϊστάμενο του ΚΕΔΔΥ.\n• Αντίγραφο του Παρουσιολογίου φυλάσσεται στο ΚΕΔΔΥ.","Βεβαιώνεται υπεύθυνα η ακρίβεια των ανωτέρω στοιχείων και η συμφωνία του προβλεπόμενου ωραρίου με τις ώρες υποστήριξης\nΟ/Η ΒΕΒΑΙΩΝ/ΟΥΣΑ\n\nΟ/Η ΠΡΟΪΣΤΑΜΕΝΟΣ/Η ΤΟΥ ΚΕΔΔΥ"]
["ΑΝΑΠΤΥΞΗ ΥΠΟΣΤΗΡΙΚΤΙΚΩΝ ΔΟΜΩΝ (ΣΔΕΥ)","Έργο : «Ανάπτυξη υποστηρικτικών δομών για την ένταξη και συμπερίληψη στην εκπαίδευση των μαθητών με αναπηρία ή και ειδικές εκπαιδευτικές ανάγκες, σχολικό έτος 2017-18», με κωδικό ΟΠΣ 5009803, του Ε.Π. «Ανάπτυξη Ανθρώπινου Δυναμικού, Εκπαίδευση και Διά Βίου Μάθηση 2014-2020»  ","Δ/νση Εκπ/σης:","Σχολείο:","Κωδικός Σχολείου:","Ταχ. Δ/νση Σχολείου:","Τηλ. Σχολείου:","FAX:","e-mail:","Ονοματεπώνυμο Διευθυντή του Σχολείου:","Ονοματεπώνυμο αναπληρωτή/τριας ΕΕΠ:","Ειδικότητα:","ΑΦΜ:","Ώρες Υποστήριξης σύμφωνα με το Ωρολόγιο Πρόγραμμα","ΠΑΡΟΥΣΙΕΣ\nΏρες Υποστήριξης\nή\nαιτιολογία μη λειτουργίας σχολείου","ΥΠΟΓΡΑΦΗ αναπληρωτή/τριας ΕΕΠ\n\n(ΜΟΝΟ τις ημέρες που είναι παρών/ούσα)","ΑΠΟΥΣΙΕΣ\n\n(Ώρες Υποστήριξης)","ΛΟΓΟΣ ΑΠΟΥΣΙΑΣ\n(είδος άδειας, απεργία/στάση εργασίας, αδικαιολόγητη απουσία)","Οδηγίες:\n• Ο-Η αναπληρωτής/τρια ΕΕΠ υπογράφει ΜΟΝΟ τις ημέρες που είναι παρών/ούσα.\n• Το παρουσιολόγιο ελέγχεται από τον αναπληρωτή ΕΕΠ και τον Διευθυντή του Σχολείου.\n• Αντίγραφο του Παρουσιολογίου φυλάσσεται στο Σχολείο.","Βεβαιώνεται υπεύθυνα η ακρίβεια των ανωτέρω στοιχείων και η συμφωνία του ωρολογίου προγ/τος με τις ώρες υποστήριξης\nΟ/Η ΒΕΒΑΙΩΝ/ΟΥΣΑ\n\nΟ/Η ΔΙΕΥΘΥΝΤΗΣ/ΝΤΡΙΑ ΤΟΥ ΣΧΟΛΕΙΟΥ"]
["ΕΚΟ (ΕΚΠΑΙΔΕΥΤΙΚΟΙ)","Έργο : «Ένταξη ευάλωτων κοινωνικών ομάδων (ΕΚΟ) στα σχολεία-Τάξεις Υποδοχής, σχολικό έτος 2017-2018» με κωδικό ΟΠΣ 5009805, του Ε.Π. «Ανάπτυξη Ανθρώπινου Δυναμικού, Εκπαίδευση και Διά Βίου Μάθηση 2014-2020» ","Δ/νση Εκπ/σης:","Σχολείο:","Κωδικός Σχολείου:","Ταχ. Δ/νση Σχολείου:","Τηλ. Σχολείου:","FAX:","e-mail:","Ονοματεπώνυμο Διευθυντή του Σχολείου:","Ονοματεπώνυμο αναπληρωτή/τριας εκπαιδευτικού:","Ειδικότητα:","ΑΦΜ:","Διδακτικές ώρες σύμφωνα με το Ωρολόγιο Πρόγραμμα","ΠΑΡΟΥΣΙΕΣ\nΔιδακτικές ώρες\nή \nαιτιολογία μη λειτουργίας σχολείου","ΥΠΟΓΡΑΦΗ ΕΚΠ/ΚΟΥ\n\n(ΜΟΝΟ τις ημέρες που είναι παρών/ούσα)","ΑΠΟΥΣΙΕΣ\n\n(Διδ. Ώρες)","ΛΟΓΟΣ ΑΠΟΥΣΙΑΣ\n(είδος άδειας, απεργία/στάση εργασίας, αδικαιολόγητη απουσία)","Οδηγίες:\n• Ο-Η αναπληρωτής/τρια εκπ/κός υπογράφει ΜΟΝΟ τις ημέρες που είναι παρών/ούσα.\n• Το παρουσιολόγιο ελέγχεται από τον εκπαιδευτικό και τον Διευθυντή του Σχολείου.\n• Αντίγραφο του Παρουσιολογίου φυλάσσεται στο Σχολείο.","Βεβαιώνεται υπεύθυνα η ακρίβεια των ανωτέρω στοιχείων και η συμφωνία του ωρολογίου προγ/τος με τις διδακτικές ώρες \nΟ/Η ΒΕΒΑΙΩΝ/ΟΥΣΑ\n\nΟ/Η ΔΙΕΥΘΥΝΤΗΣ/ΝΤΡΙΑ ΤΟΥ ΣΧΟΛΕΙΟΥ"]
["ΕΚΟ (ΕΕΠ/ΕΒΠ)","Έργο : «Ένταξη ευάλωτων κοινωνικών ομάδων (ΕΚΟ) στα σχολεία-Τάξεις Υποδοχής, σχολικό έτος 2017-2018» με κωδικό ΟΠΣ 5009805, του Ε.Π. «Ανάπτυξη Ανθρώπινου Δυναμικού, Εκπαίδευση και Διά Βίου Μάθηση 2014-2020» ","Δ/νση Εκπ/σης:","Σχολείο:","Κωδικός Σχολείου:","Ταχ. Δ/νση Σχολείου:","Τηλ. Σχολείου:","FAX:","e-mail:","Ονοματεπώνυμο Διευθυντή του Σχολείου:","Ονοματεπώνυμο αναπληρωτή/τριας ΕΕΠ/ΕΒΠ:","Ειδικότητα:","ΑΦΜ:","Ώρες Υποστήριξης σύμφωνα με το Ωρολόγιο Πρόγραμμα","ΠΑΡΟΥΣΙΕΣ\nΏρες Υποστήριξης\nή\nαιτιολογία μη λειτουργίας σχολείου","ΥΠΟΓΡΑΦΗ αναπληρωτή/τριας ΕΕΠ/ΕΒΠ\n\n(ΜΟΝΟ τις ημέρες που είναι παρών/ούσα)","ΑΠΟΥΣΙΕΣ\n\n(Ώρες Υποστήριξης)","ΛΟΓΟΣ ΑΠΟΥΣΙΑΣ\n(είδος άδειας, απεργία/στάση εργασίας, αδικαιολόγητη απουσία)","Οδηγίες:\n• Ο-Η αναπληρωτής/τρια ΕΕΠ/ΕΒΠ υπογράφει ΜΟΝΟ τις ημέρες που είναι παρών/ούσα.\n• Το παρουσιολόγιο ελέγχεται από τον αναπληρωτή ΕΕΠ/ΕΒΠ και τον Διευθυντή του Σχολείου.\n• Αντίγραφο του Παρουσιολογίου φυλάσσεται στο Σχολείο.","Βεβαιώνεται υπεύθυνα η ακρίβεια των ανωτέρω στοιχείων και η συμφωνία του ωρολογίου προγ/τος με τις ώρες υποστήριξης\nΟ/Η ΒΕΒΑΙΩΝ/ΟΥΣΑ\n\nΟ/Η ΔΙΕΥΘΥΝΤΗΣ/ΝΤΡΙΑ ΤΟΥ ΣΧΟΛΕΙΟΥ"]
["ΕΝΙΣΧΥΤΙΚΗ ΔΙΔΑΣΚΑΛΙΑ","Έργο :  «Ενισχυτική διδασκαλία στη Β/θμια εκπαίδευση, σχολικό έτος 2017/18» με κωδικό ΟΠΣ 5009800, του Ε.Π. «Ανάπτυξη Ανθρώπινου Δυναμικού, Εκπαίδευση και Διά Βίου Μάθηση 2014-2020» ","Δ/νση Β/θμιας Εκπ/σης:","ΣΚΑΕ:","Κωδικός ΣΚΑΕ/Σχολ.:","Ταχ. Δ/νση ΣΚΑΕ:","Τηλ. ΣΚΑΕ:","FAX:","e-mail:","Ονοματεπώνυμο ΥΣΚΑΕ:","Ονοματεπώνυμο αναπληρωτή/τριας εκπαιδευτικού:","Ειδικότητα:","ΑΦΜ:","Διδακτικές ώρες σύμφωνα με το Ωρολόγιο Πρόγραμμα","ΠΑΡΟΥΣΙΕΣ\nΔιδακτικές ώρες\nή \nαιτιολογία μη λειτουργίας ΣΚΑΕ","ΥΠΟΓΡΑΦΗ ΕΚΠ/ΚΟΥ\n\n(ΜΟΝΟ τις ημέρες που είναι παρών/ούσα)","ΑΠΟΥΣΙΕΣ\n\n(Διδ. Ώρες)","ΛΟΓΟΣ ΑΠΟΥΣΙΑΣ\n(είδος άδειας, απεργία/στάση εργασίας, αδικαιολόγητη απουσία)","Οδηγίες:\n• Ο-Η αναπληρωτής/τρια εκπ/κός υπογράφει ΜΟΝΟ τις ημέρες που είναι παρών/ούσα.\n• Το παρουσιολόγιο ελέγχεται από τον εκπαιδευτικό και τον Υ.Σ.Κ.Α.Ε.\n• Αντίγραφο του Παρουσιολογίου φυλάσσεται στο ΣΚΑΕ.","Βεβαιώνεται υπεύθυνα η ακρίβεια των ανωτέρω στοιχείων και η συμφωνία του ωρολογίου προγ/τος με τις διδακτικές ώρες \nΟ/Η ΒΕΒΑΙΩΝ/ΟΥΣΑ\n\nΟ/Η Υ.Σ.Κ.Α.Ε."]
["ΕΝΤΑΞΗ ΠΡΟΣΦΥΓΟΠΑΙΔΩΝ","Έργο : «Ένταξη Προσφυγοπαίδων, ηλικίας έως 15 ετών, στο Εκπαιδευτικό Σύστημα» με Κωδικό ΟΠΣ 5002810, από το Εθνικό Πρόγραμμα Ταμείου Ασύλου, Μετανάστευσης και Ένταξης 2014-2020","Δ/νση Εκπ/σης:","Σχολείο:","Κωδικός Σχολείου:","Ταχ. Δ/νση Σχολείου:","Τηλ. Σχολείου:","FAX:","e-mail:","Ονοματεπώνυμο Διευθυντή του Σχολείου/Προϊσταμένου Νηπιαγωγείου (ΔΥΕΠ):","Ονοματεπώνυμο αναπληρωτή/τριας εκπαιδευτικού:","Ειδικότητα:","ΑΦΜ:","Διδακτικές ώρες σύμφωνα με το Ωρολόγιο Πρόγραμμα","ΠΑΡΟΥΣΙΕΣ\nΔιδακτικές ώρες\nή \nαιτιολογία μη λειτουργίας σχολείου","ΥΠΟΓΡΑΦΗ ΕΚΠ/ΚΟΥ\n\n(ΜΟΝΟ τις ημέρες που είναι παρών/ούσα)","ΑΠΟΥΣΙΕΣ\n\n(Διδ. Ώρες)","ΛΟΓΟΣ ΑΠΟΥΣΙΑΣ\n(είδος άδειας, απεργία/στάση εργασίας, αδικαιολόγητη απουσία)","Οδηγίες:\n• Ο-Η αναπληρωτής/τρια εκπ/κός υπογράφει ΜΟΝΟ τις ημέρες που είναι παρών/ούσα.\n• Το παρουσιολόγιο ελέγχεται από τον εκπαιδευτικό και τον Διευθυντή του Σχολείου/Προϊστάμενο Νηπιαγωγείου (ΔΥΕΠ).\n• Αντίγραφο του Παρουσιολογίου φυλάσσεται στο Σχολείο/Νηπιαγωγείο(ΔΥΕΠ).","Βεβαιώνεται υπεύθυνα η ακρίβεια των ανωτέρω στοιχείων και η συμφωνία του ωρολογίου προγ/τος με τις διδακτικές ώρες \nΟ/Η ΒΕΒΑΙΩΝ/ΟΥΣΑ\n\nΟ/Η ΔΙΕΥΘΥΝΤΗΣ/ΝΤΡΙΑ ΤΟΥ ΣΧΟΛΕΙΟΥ / ΠΡΟΪΣΤΑΜΕΝΟΣ ΝΗΠΙΑΓΩΓΕΙΟΥ (ΔΥΕΠ)"]
["ΜΙΑ ΝΕΑ ΑΡΧΗ ΣΤΑ ΕΠΑΛ (ΕΚΠΑΙΔΕΥΤΙΚΟΙ)","Έργο : «Μια Νέα Αρχή στα ΕΠΑΛ - Υποστήριξη σχολικών μονάδων ΕΠΑΛ» με κωδικό ΟΠΣ 5010706, του Ε.Π. «Ανάπτυξη Ανθρώπινου Δυναμικού, Εκπαίδευση και Διά Βίου Μάθηση 2014-2020» ","Δ/νση Β/θμιας Εκπ/σης:","Σχολείο:","Κωδικός Σχολείου:","Ταχ. Δ/νση Σχολείου:","Τηλ. Σχολείου:","FAX:","e-mail:","Ονοματεπώνυμο Διευθυντή Σχολικής Μονάδας ΕΠΑ.Λ.:","Ονοματεπώνυμο αναπληρωτή/τριας εκπαιδευτικού:","Ειδικότητα:","ΑΦΜ:","Διδακτικές ώρες σύμφωνα με το Ωρολόγιο Πρόγραμμα","ΠΑΡΟΥΣΙΕΣ\nΔιδακτικές ώρες\nή \nαιτιολογία μη λειτουργίας σχολείου","ΥΠΟΓΡΑΦΗ ΕΚΠ/ΚΟΥ\n\n(ΜΟΝΟ τις ημέρες που είναι παρών/ούσα)","ΑΠΟΥΣΙΕΣ\n\n(Διδ. Ώρες)","ΛΟΓΟΣ ΑΠΟΥΣΙΑΣ\n(είδος άδειας, απεργία/στάση εργασίας, αδικαιολόγητη απουσία)","Οδηγίες:\n• Ο-Η αναπληρωτής/τρια εκπ/κός υπογράφει ΜΟΝΟ τις ημέρες που είναι παρών/ούσα.\n• Το παρουσιολόγιο ελέγχεται από τον εκπαιδευτικό και τον Διευθυντή του Σχολείου.\n• Αντίγραφο του Παρουσιολογίου φυλάσσεται στο Σχολείο.","Βεβαιώνεται υπεύθυνα η ακρίβεια των ανωτέρω στοιχείων και η συμφωνία του ωρολογίου προγ/τος με τις διδακτικές ώρες \nΟ/Η ΒΕΒΑΙΩΝ/ΟΥΣΑ\n\nΟ/Η ΔΙΕΥΘΥΝΤΗΣ/ΝΤΡΙΑ ΤΟΥ ΣΧΟΛΕΙΟΥ"]
["ΜΙΑ ΝΕΑ ΑΡΧΗ ΣΤΑ ΕΠΑΛ (ΕΕΠ)","Έργο : «Μια Νέα Αρχή στα ΕΠΑΛ - Υποστήριξη σχολικών μονάδων ΕΠΑΛ» με κωδικό ΟΠΣ 5010706, του Ε.Π. «Ανάπτυξη Ανθρώπινου Δυναμικού, Εκπαίδευση και Διά Βίου Μάθηση 2014-2020» ","Δ/νση Β/θμιας Εκπ/σης:","Σχολείο:","Κωδικός Σχολείου:","Ταχ. Δ/νση Σχολείου:","Τηλ. Σχολείου:","FAX:","e-mail:","Ονοματεπώνυμο Διευθυντή Σχολικής Μονάδας ΕΠΑ.Λ.:","Ονοματεπώνυμο αναπληρωτή/τριας ΕΕΠ:","Ειδικότητα:","ΑΦΜ:","Ώρες Υποστήριξης σύμφωνα με το Ωρολόγιο Πρόγραμμα","ΠΑΡΟΥΣΙΕΣ\nΏρες Υποστήριξης\nή\nαιτιολογία μη λειτουργίας σχολείου","ΥΠΟΓΡΑΦΗ αναπληρωτή/τριας ΕΕΠ\n\n(ΜΟΝΟ τις ημέρες που είναι παρών/ούσα)","ΑΠΟΥΣΙΕΣ\n\n(Ώρες Υποστήριξης)","ΛΟΓΟΣ ΑΠΟΥΣΙΑΣ\n(είδος άδειας, απεργία/στάση εργασίας, αδικαιολόγητη απουσία)","Οδηγίες:\n• Ο-Η αναπληρωτής/τρια ΕΕΠ υπογράφει ΜΟΝΟ τις ημέρες που είναι παρών/ούσα.\n• Το παρουσιολόγιο ελέγχεται από τον αναπληρωτή ΕΕΠ και τον Διευθυντή του Σχολείου.\n• Αντίγραφο του Παρουσιολογίου φυλάσσεται στο Σχολείο.","Βεβαιώνεται υπεύθυνα η ακρίβεια των ανωτέρω στοιχείων και η συμφωνία του ωρολογίου προγ/τος με τις ώρες υποστήριξης\nΟ/Η ΒΕΒΑΙΩΝ/ΟΥΣΑ\n\nΟ/Η ΔΙΕΥΘΥΝΤΗΣ/ΝΤΡΙΑ ΤΟΥ ΣΧΟΛΕΙΟΥ"]
["ΠΔΕ","Έργο : «ΠΛΗΡΩΜΗ ΑΝΑΠΛΗΡΩΤΩΝ ΚΑΙ ΩΡΟΜΙΣΘΙΩΝ ΕΚΠΑΙΔΕΥΤΙΚΩΝ, ΚΑΘΩΣ ΚΑΙ ΕΙΔΙΚΟΥ ΕΚΠΑΙΔΕΥΤΙΚΟΥ ΚΑΙ ΒΟΗΘΗΤΙΚΟΥ ΠΡΟΣΩΠΙΚΟΥ (ΕΕΠ-ΕΒΠ) ΤΟΥ ΥΠΟΥΡΓΕΙΟΥ ΠΑΙΔΕΙΑΣ, ΕΡΕΥΝΑΣ ΚΑΙ ΘΡΗΣΚΕΥΜΑΤΩΝ ΑΠΟ ΤΟ ΠΡΟΓΡΑΜΜΑ ΔΗΜΟΣΙΩΝ ΕΠΕΝΔΥΣΕΩΝ»","Δ/νση Εκπ/σης:","Σχολείο:","Κωδικός Σχολείου:","Ταχ. Δ/νση Σχολείου:","Τηλ. Σχολείου:","FAX:","e-mail:","Ονοματεπώνυμο Διευθυντή του Σχολείου:","Ονοματεπώνυμο αναπληρωτή/τριας εκπαιδευτικού:","Ειδικότητα:","ΑΦΜ:","Διδακτικές ώρες σύμφωνα με το Ωρολόγιο Πρόγραμμα","ΠΑΡΟΥΣΙΕΣ\nΔιδακτικές ώρες\nή \nαιτιολογία μη λειτουργίας σχολείου","ΥΠΟΓΡΑΦΗ ΕΚΠ/ΚΟΥ\n\n(ΜΟΝΟ τις ημέρες που είναι παρών/ούσα)","ΑΠΟΥΣΙΕΣ\n\n(Διδ. Ώρες)","ΛΟΓΟΣ ΑΠΟΥΣΙΑΣ\n(είδος άδειας, απεργία/στάση εργασίας, αδικαιολόγητη απουσία)","Οδηγίες:\n• Ο-Η αναπληρωτής/τρια εκπ/κός υπογράφει ΜΟΝΟ τις ημέρες που είναι παρών/ούσα.\n• Το παρουσιολόγιο ελέγχεται από τον εκπαιδευτικό και τον Διευθυντή του Σχολείου.\n• Αντίγραφο του Παρουσιολογίου φυλάσσεται στο Σχολείο.","Βεβαιώνεται υπεύθυνα η ακρίβεια των ανωτέρω στοιχείων και η συμφωνία του ωρολογίου προγ/τος με τις διδακτικές ώρες \nΟ/Η ΒΕΒΑΙΩΝ/ΟΥΣΑ\n\nΟ/Η ΔΙΕΥΘΥΝΤΗΣ/ΝΤΡΙΑ ΤΟΥ ΣΧΟΛΕΙΟΥ"]
["ΠΕΠ ΕΞΕΙΔΙΚΕΥΜΕΝΗ - ΑΜΘ","Έργο : «ΕΞΕΙΔΙΚΕΥΜΕΝΗ ΕΚΠΑΙΔΕΥΤΙΚΗ ΥΠΟΣΤΗΡΙΞΗ ΓΙΑ ΤΗΝ ΕΝΤΑΞΗ ΜΑΘΗΤΩΝ ΜΕ ΑΝΑΠΗΡΙΑ ή/και ΕΙΔΙΚΕΣ ΕΚΠΑΙΔΕΥΤΙΚΕΣ ΑΝΑΓΚΕΣ, σχολικό έτος 2017-2018», με κωδικό ΟΠΣ 5008076, στο Ε.Π. «Ανατολική Μακεδονία Θράκη 2014-2020»","Δ/νση Εκπ/σης:","Σχολείο:","Κωδικός Σχολείου:","Ταχ. Δ/νση Σχολείου:","Τηλ. Σχολείου:","FAX:","e-mail:","Ονοματεπώνυμο Διευθυντή του Σχολείου:","Ονοματεπώνυμο αναπληρωτή/τριας ΕΕΠ/ΕΒΠ:","Ειδικότητα:","ΑΦΜ:","Ώρες Υποστήριξης σύμφωνα με το Ωρολόγιο Πρόγραμμα","ΠΑΡΟΥΣΙΕΣ\nΏρες Υποστήριξης\nή\nαιτιολογία μη λειτουργίας σχολείου","ΥΠΟΓΡΑΦΗ αναπληρωτή/τριας ΕΕΠ/ΕΒΠ\n\n(ΜΟΝΟ τις ημέρες που είναι παρών/ούσα)","ΑΠΟΥΣΙΕΣ\n\n(Ώρες Υποστήριξης)","ΛΟΓΟΣ ΑΠΟΥΣΙΑΣ\n(είδος άδειας, απεργία/στάση εργασίας, αδικαιολόγητη απουσία)","Οδηγίες:\n• Ο-Η αναπληρωτής/τρια ΕΕΠ/ΕΒΠ υπογράφει ΜΟΝΟ τις ημέρες που είναι παρών/ούσα.\n• Το παρουσιολόγιο ελέγχεται από τον αναπληρωτή ΕΕΠ/ΕΒΠ και τον Διευθυντή του Σχολείου.\n• Αντίγραφο του Παρουσιολογίου φυλάσσεται στο Σχολείο.","Βεβαιώνεται υπεύθυνα η ακρίβεια των ανωτέρω στοιχείων και η συμφωνία του ωρολογίου προγ/τος με τις ώρες υποστήριξης\nΟ/Η ΒΕΒΑΙΩΝ/ΟΥΣΑ\n\nΟ/Η ΔΙΕΥΘΥΝΤΗΣ/ΝΤΡΙΑ ΤΟΥ ΣΧΟΛΕΙΟΥ"]
["ΠΕΠ ΕΞΕΙΔΙΚΕΥΜΕΝΗ - ΔΥΤΙΚΗ ΕΛΛΑΔΑ","Έργο : «ΕΞΕΙΔΙΚΕΥΜΕΝΗ ΕΚΠΑΙΔΕΥΤΙΚΗ ΥΠΟΣΤΗΡΙΞΗ ΓΙΑ ΤΗΝ ΕΝΤΑΞΗ ΜΑΘΗΤΩΝ ΜΕ ΑΝΑΠΗΡΙΑ ή/και ΕΙΔΙΚΕΣ ΕΚΠΑΙΔΕΥΤΙΚΕΣ ΑΝΑΓΚΕΣ, σχολικό έτος 2017-2018», με κωδικό ΟΠΣ 5009763, στο Ε.Π. «Δυτική Ελλάδα 2014-2020» ","Δ/νση Εκπ/σης:","Σχολείο:","Κωδικός Σχολείου:","Ταχ. Δ/νση Σχολείου:","Τηλ. Σχολείου:","FAX:","e-mail:","Ονοματεπώνυμο Διευθυντή του Σχολείου:","Ονοματεπώνυμο αναπληρωτή/τριας ΕΕΠ/ΕΒΠ:","Ειδικότητα:","ΑΦΜ:","Ώρες Υποστήριξης σύμφωνα με το Ωρολόγιο Πρόγραμμα","ΠΑΡΟΥΣΙΕΣ\nΏρες Υποστήριξης\nή\nαιτιολογία μη λειτουργίας σχολείου","ΥΠΟΓΡΑΦΗ αναπληρωτή/τριας ΕΕΠ/ΕΒΠ\n\n(ΜΟΝΟ τις ημέρες που είναι παρών/ούσα)","ΑΠΟΥΣΙΕΣ\n\n(Ώρες Υποστήριξης)","ΛΟΓΟΣ ΑΠΟΥΣΙΑΣ\n(είδος άδειας, απεργία/στάση εργασίας, αδικαιολόγητη απουσία)","Οδηγίες:\n• Ο-Η αναπληρωτής/τρια ΕΕΠ/ΕΒΠ υπογράφει ΜΟΝΟ τις ημέρες που είναι παρών/ούσα.\n• Το παρουσιολόγιο ελέγχεται από τον αναπληρωτή ΕΕΠ/ΕΒΠ και τον Διευθυντή του Σχολείου.\n• Αντίγραφο του Παρουσιολογίου φυλάσσεται στο Σχολείο.","Βεβαιώνεται υπεύθυνα η ακρίβεια των ανωτέρω στοιχείων και η συμφωνία του ωρολογίου προγ/τος με τις ώρες υποστήριξης\nΟ/Η ΒΕΒΑΙΩΝ/ΟΥΣΑ\n\nΟ/Η ΔΙΕΥΘΥΝΤΗΣ/ΝΤΡΙΑ ΤΟΥ ΣΧΟΛΕΙΟΥ"]
["ΠΕΠ ΕΞΕΙΔΙΚΕΥΜΕΝΗ - ΗΠΕΙΡΟΣ","Έργο : «Παράλληλη στήριξη παιδιών με αναπηρία η/και ειδικές εκπαιδευτικές ανάγκες για τα σχολικά έτη 2016-2018» με Κωδικό ΟΠΣ 5001726, στο Ε.Π. «Ήπειρος 2014-2020»","Δ/νση Εκπ/σης:","Σχολείο:","Κωδικός Σχολείου:","Ταχ. Δ/νση Σχολείου:","Τηλ. Σχολείου:","FAX:","e-mail:","Ονοματεπώνυμο Διευθυντή του Σχολείου:","Ονοματεπώνυμο αναπληρωτή/τριας ΕΕΠ/ΕΒΠ:","Ειδικότητα:","ΑΦΜ:","Ώρες Υποστήριξης σύμφωνα με το Ωρολόγιο Πρόγραμμα","ΠΑΡΟΥΣΙΕΣ\nΏρες Υποστήριξης\nή\nαιτιολογία μη λειτουργίας σχολείου","ΥΠΟΓΡΑΦΗ αναπληρωτή/τριας ΕΕΠ/ΕΒΠ\n\n(ΜΟΝΟ τις ημέρες που είναι παρών/ούσα)","ΑΠΟΥΣΙΕΣ\n\n(Ώρες Υποστήριξης)","ΛΟΓΟΣ ΑΠΟΥΣΙΑΣ\n(είδος άδειας, απεργία/στάση εργασίας, αδικαιολόγητη απουσία)","Οδηγίες:\n• Ο-Η αναπληρωτής/τρια ΕΕΠ/ΕΒΠ υπογράφει ΜΟΝΟ τις ημέρες που είναι παρών/ούσα.\n• Το παρουσιολόγιο ελέγχεται από τον αναπληρωτή ΕΕΠ/ΕΒΠ και τον Διευθυντή του Σχολείου.\n• Αντίγραφο του Παρουσιολογίου φυλάσσεται στο Σχολείο.","Βεβαιώνεται υπεύθυνα η ακρίβεια των ανωτέρω στοιχείων και η συμφωνία του ωρολογίου προγ/τος με τις ώρες υποστήριξης\nΟ/Η ΒΕΒΑΙΩΝ/ΟΥΣΑ\n\nΟ/Η ΔΙΕΥΘΥΝΤΗΣ/ΝΤΡΙΑ ΤΟΥ ΣΧΟΛΕΙΟΥ"]
["ΠΕΠ ΕΞΕΙΔΙΚΕΥΜΕΝΗ - ΘΕΣΣΑΛΙΑ","Έργο : «ΕΞΕΙΔΙΚΕΥΜΕΝΗ ΕΚΠΑΙΔΕΥΤΙΚΗ ΥΠΟΣΤΗΡΙΞΗ ΓΙΑ ΤΗΝ ΕΝΤΑΞΗ ΜΑΘΗΤΩΝ ΜΕ ΑΝΑΠΗΡΙΑ Ή/ΚΑΙ ΕΙΔΙΚΕΣ ΕΚΠΑΙΔΕΥΤΙΚΕΣ ΑΝΑΓΚΕΣ ΓΙΑ ΤΑ ΕΤΗ 2016-2017 ΚΑΙ 2017-2018» με Κωδικό ΟΠΣ 5001979, στο Ε.Π. «Θεσσαλία 2014-2020» ","Δ/νση Εκπ/σης:","Σχολείο:","Κωδικός Σχολείου:","Ταχ. Δ/νση Σχολείου:","Τηλ. Σχολείου:","FAX:","e-mail:","Ονοματεπώνυμο Διευθυντή του Σχολείου:","Ονοματεπώνυμο αναπληρωτή/τριας ΕΕΠ/ΕΒΠ:","Ειδικότητα:","ΑΦΜ:","Ώρες Υποστήριξης σύμφωνα με το Ωρολόγιο Πρόγραμμα","ΠΑΡΟΥΣΙΕΣ\nΏρες Υποστήριξης\nή\nαιτιολογία μη λειτουργίας σχολείου","ΥΠΟΓΡΑΦΗ αναπληρωτή/τριας ΕΕΠ/ΕΒΠ\n\n(ΜΟΝΟ τις ημέρες που είναι παρών/ούσα)","ΑΠΟΥΣΙΕΣ\n\n(Ώρες Υποστήριξης)","ΛΟΓΟΣ ΑΠΟΥΣΙΑΣ\n(είδος άδειας, απεργία/στάση εργασίας, αδικαιολόγητη απουσία)","Οδηγίες:\n• Ο-Η αναπληρωτής/τρια ΕΕΠ/ΕΒΠ υπογράφει ΜΟΝΟ τις ημέρες που είναι παρών/ούσα.\n• Το παρουσιολόγιο ελέγχεται από τον αναπληρωτή ΕΕΠ/ΕΒΠ και τον Διευθυντή του Σχολείου.\n• Αντίγραφο του Παρουσιολογίου φυλάσσεται στο Σχολείο.","Βεβαιώνεται υπεύθυνα η ακρίβεια των ανωτέρω στοιχείων και η συμφωνία του ωρολογίου προγ/τος με τις ώρες υποστήριξης\nΟ/Η ΒΕΒΑΙΩΝ/ΟΥΣΑ\n\nΟ/Η ΔΙΕΥΘΥΝΤΗΣ/ΝΤΡΙΑ ΤΟΥ ΣΧΟΛΕΙΟΥ"]
["ΠΕΠ ΕΞΕΙΔΙΚΕΥΜΕΝΗ - ΚΕΝΤΡΙΚΗ ΜΑΚΕΔΟΝΙΑ","Έργο : «ΕΞΕΙΔΙΚΕΥΜΕΝΗ ΕΚΠΑΙΔΕΥΤΙΚΗ ΥΠΟΣΤΗΡΙΞΗ ΓΙΑ ΤΗΝ ΕΝΤΑΞΗ ΜΑΘΗΤΩΝ ΜΕ ΑΝΑΠΗΡΙΑ ή/και ΕΙΔΙΚΕΣ ΕΚΠΑΙΔΕΥΤΙΚΕΣ ΑΝΑΓΚΕΣ, σχολικό έτος 2017-2018», με κωδικό ΟΠΣ 5008901, στο Ε.Π. «Κεντρική Μακεδονία 2014-2020»","Δ/νση Εκπ/σης:","Σχολείο:","Κωδικός Σχολείου:","Ταχ. Δ/νση Σχολείου:","Τηλ. Σχολείου:","FAX:","e-mail:","Ονοματεπώνυμο Διευθυντή του Σχολείου:","Ονοματεπώνυμο αναπληρωτή/τριας ΕΒΠ:","Ειδικότητα:","ΑΦΜ:","Ώρες Υποστήριξης σύμφωνα με το Ωρολόγιο Πρόγραμμα","ΠΑΡΟΥΣΙΕΣ\nΏρες Υποστήριξης\nή\nαιτιολογία μη λειτουργίας σχολείου","ΥΠΟΓΡΑΦΗ αναπληρωτή/τριας ΕΒΠ\n\n(ΜΟΝΟ τις ημέρες που είναι παρών/ούσα)","ΑΠΟΥΣΙΕΣ\n\n(Ώρες Υποστήριξης)","ΛΟΓΟΣ ΑΠΟΥΣΙΑΣ\n(είδος άδειας, απεργία/στάση εργασίας, αδικαιολόγητη απουσία)","Οδηγίες:\n• Ο-Η αναπληρωτής/τρια ΕΒΠ υπογράφει ΜΟΝΟ τις ημέρες που είναι παρών/ούσα.\n• Το παρουσιολόγιο ελέγχεται από τον αναπληρωτή ΕΒΠ και τον Διευθυντή του Σχολείου.\n• Αντίγραφο του Παρουσιολογίου φυλάσσεται στο Σχολείο.","Βεβαιώνεται υπεύθυνα η ακρίβεια των ανωτέρω στοιχείων και η συμφωνία του ωρολογίου προγ/τος με τις ώρες υποστήριξης\nΟ/Η ΒΕΒΑΙΩΝ/ΟΥΣΑ\n\nΟ/Η ΔΙΕΥΘΥΝΤΗΣ/ΝΤΡΙΑ ΤΟΥ ΣΧΟΛΕΙΟΥ"]
["ΠΕΠ ΕΞΕΙΔΙΚΕΥΜΕΝΗ -  ΒΟΡΕΙΟ ΑΙΓΑΙΟ","Έργο : «ΕΞΕΙΔΙΚΕΥΜΕΝΗ ΕΚΠΑΙΔΕΥΤΙΚΗ ΥΠΟΣΤΗΡΙΞΗ ΓΙΑ ΤΗΝ ΕΝΤΑΞΗ ΜΑΘΗΤΩΝ ΜΕ ΑΝΑΠΗΡΙΑ Η ΚΑΙ ΕΙΔΙΚΕΣ ΕΚΠΑΙΔΕΥΤΙΚΕΣ ΑΝΑΓΚΕΣ 2017-2018», με κωδικό ΟΠΣ 5008110, στο Ε.Π. «Βόρειο Αιγαίο»","Δ/νση Εκπ/σης:","Σχολείο:","Κωδικός Σχολείου:","Ταχ. Δ/νση Σχολείου:","Τηλ. Σχολείου:","FAX:","e-mail:","Ονοματεπώνυμο Διευθυντή του Σχολείου:","Ονοματεπώνυμο αναπληρωτή/τριας ΕΕΠ/ΕΒΠ:","Ειδικότητα:","ΑΦΜ:","Ώρες Υποστήριξης σύμφωνα με το Ωρολόγιο Πρόγραμμα","ΠΑΡΟΥΣΙΕΣ\nΏρες Υποστήριξης\nή\nαιτιολογία μη λειτουργίας σχολείου","ΥΠΟΓΡΑΦΗ αναπληρωτή/τριας ΕΕΠ/ΕΒΠ\n\n(ΜΟΝΟ τις ημέρες που είναι παρών/ούσα)","ΑΠΟΥΣΙΕΣ\n\n(Ώρες Υποστήριξης)","ΛΟΓΟΣ ΑΠΟΥΣΙΑΣ\n(είδος άδειας, απεργία/στάση εργασίας, αδικαιολόγητη απουσία)","Οδηγίες:\n• Ο-Η αναπληρωτής/τρια ΕΕΠ/ΕΒΠ υπογράφει ΜΟΝΟ τις ημέρες που είναι παρών/ούσα.\n• Το παρουσιολόγιο ελέγχεται από τον αναπληρωτή ΕΕΠ/ΕΒΠ και τον Διευθυντή του Σχολείου.\n• Αντίγραφο του Παρουσιολογίου φυλάσσεται στο Σχολείο.","Βεβαιώνεται υπεύθυνα η ακρίβεια των ανωτέρω στοιχείων και η συμφωνία του ωρολογίου προγ/τος με τις ώρες υποστήριξης\nΟ/Η ΒΕΒΑΙΩΝ/ΟΥΣΑ\n\nΟ/Η ΔΙΕΥΘΥΝΤΗΣ/ΝΤΡΙΑ ΤΟΥ ΣΧΟΛΕΙΟΥ"]
["ΠΕΠ ΕΞΕΙΔΙΚΕΥΜΕΝΗ - ΙΟΝΙΑ ΝΗΣΙΑ","Έργο : «ΕΞΕΙΔΙΚΕΥΜΕΝΗ ΕΚΠΑΙΔΕΥΤΙΚΗ ΥΠΟΣΤΗΡΙΞΗ ΓΙΑ ΤΗΝ ΕΝΤΑΞΗ ΜΑΘΗΤΩΝ ΜΕ ΑΝΑΠΗΡΙΑ Η ΚΑΙ ΕΙΔΙΚΕΣ ΕΚΠΑΙΔΕΥΤΙΚΕΣ ΑΝΑΓΚΕΣ ΓΙΑ ΤΑ ΣΧΟΛΙΚΑ ΕΤΗ 2016 -2018 ΣΤΑ ΙΟΝΙΑ ΝΗΣΙΑ», με Κωδικό ΟΠΣ 5001821, στο Ε.Π. «Ιόνια Νησιά 2014-2020»","Δ/νση Εκπ/σης:","Σχολείο:","Κωδικός Σχολείου:","Ταχ. Δ/νση Σχολείου:","Τηλ. Σχολείου:","FAX:","e-mail:","Ονοματεπώνυμο Διευθυντή του Σχολείου:","Ονοματεπώνυμο αναπληρωτή/τριας ΕΕΠ/ΕΒΠ:","Ειδικότητα:","ΑΦΜ:","Ώρες Υποστήριξης σύμφωνα με το Ωρολόγιο Πρόγραμμα","ΠΑΡΟΥΣΙΕΣ\nΏρες Υποστήριξης\nή\nαιτιολογία μη λειτουργίας σχολείου","ΥΠΟΓΡΑΦΗ αναπληρωτή/τριας ΕΕΠ/ΕΒΠ\n\n(ΜΟΝΟ τις ημέρες που είναι παρών/ούσα)","ΑΠΟΥΣΙΕΣ\n\n(Ώρες Υποστήριξης)","ΛΟΓΟΣ ΑΠΟΥΣΙΑΣ\n(είδος άδειας, απεργία/στάση εργασίας, αδικαιολόγητη απουσία)","Οδηγίες:\n• Ο-Η αναπληρωτής/τρια ΕΕΠ/ΕΒΠ υπογράφει ΜΟΝΟ τις ημέρες που είναι παρών/ούσα.\n• Το παρουσιολόγιο ελέγχεται από τον αναπληρωτή ΕΕΠ/ΕΒΠ και τον Διευθυντή του Σχολείου.\n• Αντίγραφο του Παρουσιολογίου φυλάσσεται στο Σχολείο.","Βεβαιώνεται υπεύθυνα η ακρίβεια των ανωτέρω στοιχείων και η συμφωνία του ωρολογίου προγ/τος με τις ώρες υποστήριξης\nΟ/Η ΒΕΒΑΙΩΝ/ΟΥΣΑ\n\nΟ/Η ΔΙΕΥΘΥΝΤΗΣ/ΝΤΡΙΑ ΤΟΥ ΣΧΟΛΕΙΟΥ"]
["ΠΕΠ ΕΞΕΙΔΙΚΕΥΜΕΝΗ - ΚΡΗΤΗ","Έργο : «Εξειδικευμένη Εκπαιδευτική Υποστήριξη για ένταξη μαθητών με αναπηρία ή/και ειδικές εκπαιδευτικές ανάγκες για τα σχολικά έτη 2016-2017 και 2017-2018» με Κωδικό ΟΠΣ 5001986, στο Ε.Π. «Κρήτη 2014-2020»","Δ/νση Εκπ/σης:","Σχολείο:","Κωδικός Σχολείου:","Ταχ. Δ/νση Σχολείου:","Τηλ. Σχολείου:","FAX:","e-mail:","Ονοματεπώνυμο Διευθυντή του Σχολείου:","Ονοματεπώνυμο αναπληρωτή/τριας ΕΒΠ:","Ειδικότητα:","ΑΦΜ:","Ώρες Υποστήριξης σύμφωνα με το Ωρολόγιο Πρόγραμμα","ΠΑΡΟΥΣΙΕΣ\nΏρες Υποστήριξης\nή\nαιτιολογία μη λειτουργίας σχολείου","ΥΠΟΓΡΑΦΗ αναπληρωτή/τριας ΕΒΠ\n\n(ΜΟΝΟ τις ημέρες που είναι παρών/ούσα)","ΑΠΟΥΣΙΕΣ\n\n(Ώρες Υποστήριξης)","ΛΟΓΟΣ ΑΠΟΥΣΙΑΣ\n(είδος άδειας, απεργία/στάση εργασίας, αδικαιολόγητη απουσία)","Οδηγίες:\n• Ο-Η αναπληρωτής/τρια ΕΒΠ υπογράφει ΜΟΝΟ τις ημέρες που είναι παρών/ούσα.\n• Το παρουσιολόγιο ελέγχεται από τον αναπληρωτή ΕΒΠ και τον Διευθυντή του Σχολείου.\n• Αντίγραφο του Παρουσιολογίου φυλάσσεται στο Σχολείο.","Βεβαιώνεται υπεύθυνα η ακρίβεια των ανωτέρω στοιχείων και η συμφωνία του ωρολογίου προγ/τος με τις ώρες υποστήριξης\nΟ/Η ΒΕΒΑΙΩΝ/ΟΥΣΑ\n\nΟ/Η ΔΙΕΥΘΥΝΤΗΣ/ΝΤΡΙΑ ΤΟΥ ΣΧΟΛΕΙΟΥ"]
["ΠΕΠ ΕΞΕΙΔΙΚΕΥΜΕΝΗ - ΠΕΛΟΠΟΝΝΗΣΟΣ","Έργο : «ΕΞΕΙΔΙΚΕΥΜΕΝΗ ΕΚΠΑΙΔΕΥΤΙΚΗ ΥΠΟΣΤΗΡΙΞΗ ΓΙΑ ΤΗΝ ΕΝΤΑΞΗ ΜΑΘΗΤΩΝ ΜΕ ΑΝΑΠΗΡΙΑ ή/και ΕΙΔΙΚΕΣ ΕΚΠΑΙΔΕΥΤΙΚΕΣ ΑΝΑΓΚΕΣ, σχολικό έτος 2017-2018», με κωδικό ΟΠΣ 5008945, στο Ε.Π. «Πελοπόννησος 2014-2020»","Δ/νση Εκπ/σης:","Σχολείο:","Κωδικός Σχολείου:","Ταχ. Δ/νση Σχολείου:","Τηλ. Σχολείου:","FAX:","e-mail:","Ονοματεπώνυμο Διευθυντή του Σχολείου:","Ονοματεπώνυμο αναπληρωτή/τριας ΕΕΠ/ΕΒΠ:","Ειδικότητα:","ΑΦΜ:","Ώρες Υποστήριξης σύμφωνα με το Ωρολόγιο Πρόγραμμα","ΠΑΡΟΥΣΙΕΣ\nΏρες Υποστήριξης\nή\nαιτιολογία μη λειτουργίας σχολείου","ΥΠΟΓΡΑΦΗ αναπληρωτή/τριας ΕΕΠ/ΕΒΠ\n\n(ΜΟΝΟ τις ημέρες που είναι παρών/ούσα)","ΑΠΟΥΣΙΕΣ\n\n(Ώρες Υποστήριξης)","ΛΟΓΟΣ ΑΠΟΥΣΙΑΣ\n(είδος άδειας, απεργία/στάση εργασίας, αδικαιολόγητη απουσία)","Οδηγίες:\n• Ο-Η αναπληρωτής/τρια ΕΕΠ/ΕΒΠ υπογράφει ΜΟΝΟ τις ημέρες που είναι παρών/ούσα.\n• Το παρουσιολόγιο ελέγχεται από τον αναπληρωτή ΕΕΠ/ΕΒΠ και τον Διευθυντή του Σχολείου.\n• Αντίγραφο του Παρουσιολογίου φυλάσσεται στο Σχολείο.","Βεβαιώνεται υπεύθυνα η ακρίβεια των ανωτέρω στοιχείων και η συμφωνία του ωρολογίου προγ/τος με τις ώρες υποστήριξης\nΟ/Η ΒΕΒΑΙΩΝ/ΟΥΣΑ\n\nΟ/Η ΔΙΕΥΘΥΝΤΗΣ/ΝΤΡΙΑ ΤΟΥ ΣΧΟΛΕΙΟΥ"]
["ΠΕΠ ΕΞΕΙΔΙΚΕΥΜΕΝΗ - ΑΤΤΙΚΗ","Έργο : «Εξειδικευμένη εκπαιδευτική υποστήριξη για την ένταξη μαθητών με αναπηρία ή/και ειδικές εκπαιδευτικές ανάγκες – Σχολικά έτη 2016-2017, 2017-2018» με Κωδικό ΟΠΣ 5001951, στο Ε.Π. «Αττική 2014-2020»","Δ/νση Εκπ/σης:","Σχολείο:","Κωδικός Σχολείου:","Ταχ. Δ/νση Σχολείου:","Τηλ. Σχολείου:","FAX:","e-mail:","Ονοματεπώνυμο Διευθυντή του Σχολείου:","Ονοματεπώνυμο αναπληρωτή/τριας ΕΕΠ/ΕΒΠ:","Ειδικότητα:","ΑΦΜ:","Ώρες Υποστήριξης σύμφωνα με το Ωρολόγιο Πρόγραμμα","ΠΑΡΟΥΣΙΕΣ\nΏρες Υποστήριξης\nή\nαιτιολογία μη λειτουργίας σχολείου","ΥΠΟΓΡΑΦΗ αναπληρωτή/τριας ΕΕΠ/ΕΒΠ\n\n(ΜΟΝΟ τις ημέρες που είναι παρών/ούσα)","ΑΠΟΥΣΙΕΣ\n\n(Ώρες Υποστήριξης)","ΛΟΓΟΣ ΑΠΟΥΣΙΑΣ\n(είδος άδειας, απεργία/στάση εργασίας, αδικαιολόγητη απουσία)","Οδηγίες:\n• Ο-Η αναπληρωτής/τρια ΕΕΠ/ΕΒΠ υπογράφει ΜΟΝΟ τις ημέρες που είναι παρών/ούσα.\n• Το παρουσιολόγιο ελέγχεται από τον αναπληρωτή ΕΕΠ/ΕΒΠ και τον Διευθυντή του Σχολείου.\n• Αντίγραφο του Παρουσιολογίου φυλάσσεται στο Σχολείο.","Βεβαιώνεται υπεύθυνα η ακρίβεια των ανωτέρω στοιχείων και η συμφωνία του ωρολογίου προγ/τος με τις ώρες υποστήριξης\nΟ/Η ΒΕΒΑΙΩΝ/ΟΥΣΑ\n\nΟ/Η ΔΙΕΥΘΥΝΤΗΣ/ΝΤΡΙΑ ΤΟΥ ΣΧΟΛΕΙΟΥ"]
["ΠΕΠ ΕΞΕΙΔΙΚΕΥΜΕΝΗ - ΣΤΕΡΕΑ ΕΛΛΑΔΑ","Έργο : «ΕΞΕΙΔΙΚΕΥΜΕΝΗ ΕΚΠΑΙΔΕΥΤΙΚΗ ΥΠΟΣΤΗΡΙΞΗ ΓΙΑ ΤΗΝ ΕΝΤΑΞΗ ΜΑΘΗΤΩΝ ΜΕ ΑΝΑΠΗΡΙΑ Ή/ΚΑΙ ΕΙΔΙΚΕΣ ΕΚΠΑΙΔΕΥΤΙΚΕΣ ΑΝΑΓΚΕΣ 2017-2018», με κωδικό ΟΠΣ 5009767, στο Ε.Π. «Στερεά Ελλάδα»","Δ/νση Εκπ/σης:","Σχολείο:","Κωδικός Σχολείου:","Ταχ. Δ/νση Σχολείου:","Τηλ. Σχολείου:","FAX:","e-mail:","Ονοματεπώνυμο Διευθυντή του Σχολείου:","Ονοματεπώνυμο αναπληρωτή/τριας ΕΕΠ/ΕΒΠ:","Ειδικότητα:","ΑΦΜ:","Ώρες Υποστήριξης σύμφωνα με το Ωρολόγιο Πρόγραμμα","ΠΑΡΟΥΣΙΕΣ\nΏρες Υποστήριξης\nή\nαιτιολογία μη λειτουργίας σχολείου","ΥΠΟΓΡΑΦΗ αναπληρωτή/τριας ΕΕΠ/ΕΒΠ\n\n(ΜΟΝΟ τις ημέρες που είναι παρών/ούσα)","ΑΠΟΥΣΙΕΣ\n\n(Ώρες Υποστήριξης)","ΛΟΓΟΣ ΑΠΟΥΣΙΑΣ\n(είδος άδειας, απεργία/στάση εργασίας, αδικαιολόγητη απουσία)","Οδηγίες:\n• Ο-Η αναπληρωτής/τρια ΕΕΠ/ΕΒΠ υπογράφει ΜΟΝΟ τις ημέρες που είναι παρών/ούσα.\n• Το παρουσιολόγιο ελέγχεται από τον αναπληρωτή ΕΕΠ/ΕΒΠ και τον Διευθυντή του Σχολείου.\n• Αντίγραφο του Παρουσιολογίου φυλάσσεται στο Σχολείο.","Βεβαιώνεται υπεύθυνα η ακρίβεια των ανωτέρω στοιχείων και η συμφωνία του ωρολογίου προγ/τος με τις ώρες υποστήριξης\nΟ/Η ΒΕΒΑΙΩΝ/ΟΥΣΑ\n\nΟ/Η ΔΙΕΥΘΥΝΤΗΣ/ΝΤΡΙΑ ΤΟΥ ΣΧΟΛΕΙΟΥ"]
["ΠΕΠ ΕΞΕΙΔΙΚΕΥΜΕΝΗ - ΝΟΤΙΟ ΑΙΓΑΙΟ","Έργο : «Εξειδικευμένη εκπαιδευτική υποστήριξη για την ένταξη μαθητών με αναπηρία ή/και ειδικές εκπαιδευτικές ανάγκες για τα σχολικά έτη 2016-2017 και 2017-2018» με Κωδικό ΟΠΣ 5001514, στο Ε.Π. «Νότιο Αιγαίο 2014-2020»","Δ/νση Εκπ/σης:","Σχολείο:","Κωδικός Σχολείου:","Ταχ. Δ/νση Σχολείου:","Τηλ. Σχολείου:","FAX:","e-mail:","Ονοματεπώνυμο Διευθυντή του Σχολείου:","Ονοματεπώνυμο αναπληρωτή/τριας ΕΕΠ/ΕΒΠ:","Ειδικότητα:","ΑΦΜ:","Ώρες Υποστήριξης σύμφωνα με το Ωρολόγιο Πρόγραμμα","ΠΑΡΟΥΣΙΕΣ\nΏρες Υποστήριξης\nή\nαιτιολογία μη λειτουργίας σχολείου","ΥΠΟΓΡΑΦΗ αναπληρωτή/τριας ΕΕΠ/ΕΒΠ\n\n(ΜΟΝΟ τις ημέρες που είναι παρών/ούσα)","ΑΠΟΥΣΙΕΣ\n\n(Ώρες Υποστήριξης)","ΛΟΓΟΣ ΑΠΟΥΣΙΑΣ\n(είδος άδειας, απεργία/στάση εργασίας, αδικαιολόγητη απουσία)","Οδηγίες:\n• Ο-Η αναπληρωτής/τρια ΕΕΠ/ΕΒΠ υπογράφει ΜΟΝΟ τις ημέρες που είναι παρών/ούσα.\n• Το παρουσιολόγιο ελέγχεται από τον αναπληρωτή ΕΕΠ/ΕΒΠ και τον Διευθυντή του Σχολείου.\n• Αντίγραφο του Παρουσιολογίου φυλάσσεται στο Σχολείο.","Βεβαιώνεται υπεύθυνα η ακρίβεια των ανωτέρω στοιχείων και η συμφωνία του ωρολογίου προγ/τος με τις ώρες υποστήριξης\nΟ/Η ΒΕΒΑΙΩΝ/ΟΥΣΑ\n\nΟ/Η ΔΙΕΥΘΥΝΤΗΣ/ΝΤΡΙΑ ΤΟΥ ΣΧΟΛΕΙΟΥ"]